bitfinex-derivatives/quotes_SOLF0:USTF0_20250823
["timestamp","ask_amount","ask_price","bid_price","bid_amount"]
[1755912880309,5.0648,197.51,197.44,9.94253762]
[1755912880512,5.0648,197.51,197.45,4.91380751]
[1755912880709,5.0648,197.51,197.43,5.0665]
[1755912880912,5.0648,197.51,197.44,9.94310749]
[1755912881110,5.0648,197.51,197.45,4.91408915]
[1755912881314,5.0648,197.51,197.45,2.69]
[1755912882416,25.3187,197.55,197.42,2.69]
[1755912882417,7.7552,197.5,197.42,2.69]
[1755912882620,7.7552,197.5,197.43,9.9452802]
[1755912882821,2.69,197.5,197.44,9.9452802]
[1755912883122,2.69,197.5,197.45,7.60517795]
[1755912883312,2.69,197.5,197.45,2.69]
[1755912883513,2.69,197.5,197.44,5.0664]
[1755912883716,2.69,197.5,197.46,2.69]
[1755912885023,8.40929665,197.54,197.47,7.60465743]
[1755912885024,7.754,197.54,197.47,7.60465743]
[1755912885225,7.754,197.54,197.4,25.3376]
[1755912885226,8.40929665,197.54,197.49,2.69]
[1755912885425,8.40929665,197.57,197.5,4.91447045]
[1755912885622,2.69,197.58,197.46,2.24310239]
[1755912885623,11.09929665,197.58,197.52,2.69]
[1755912885923,2.24310239,197.63,197.54,2.69]
[1755912885924,2.69,197.62,197.54,2.69]
[1755912886130,5.0623,197.61,197.55,4.91447045]
[1755912886318,5.0623,197.61,197.54,2.69]
[1755912886625,11.09929665,197.62,197.55,4.91135091]
[1755912886818,2.69,197.62,197.56,9.93702671]
[1755912887017,2.69,197.62,197.57,7.60097996]
[1755912887223,2.69,197.62,197.57,2.69]
[1755912887917,11.09929665,197.64,197.55,5.0635]
[1755912888125,8.40929665,197.65,197.56,2.69]
[1755912888420,8.40929665,197.67,197.56,2.69]
[1755912889222,8.40929665,197.67,197.6,5.0622]
[1755912889517,8.40929665,197.67,197.53,25.3205]
[1755912889518,2.24310239,197.64,197.57,2.69]
[1755912889825,8.40929665,197.61,197.5,2.69]
[1755912890023,8.40929665,197.6,197.5,2.69]
[1755912890626,8.40929665,197.6,197.51,5.0645]
[1755912891525,8.40929665,197.6,197.52,5.0643]
[1755912891728,8.40929665,197.6,197.53,2.69]
[1755912893128,8.40929665,197.61,197.53,2.24310239]
[1755912893328,2.69,197.64,197.54,2.69]
[1755912893529,8.40929665,197.67,197.59,2.69]
[1755912893829,4.93310239,197.69,197.59,2.69]
[1755912893830,8.40929665,197.68,197.59,2.69]
[1755912894026,13.34239904,197.69,197.59,2.69]
[1755912894231,2.69,197.68,197.59,2.69]
[1755912894626,2.69,197.66,197.59,2.69]
[1755912894827,2.69,197.65,197.55,128.92]
[1755912895333,5.0616,197.64,197.56,5.0634]
[1755912895632,2.69,197.63,197.55,128.92]
[1755912895931,4.93310239,197.63,197.54,2.69]
[1755912896127,2.69,197.62,197.54,2.69]
[1755912896730,5.0626,197.6,197.54,2.69]
[1755912898529,7.7519,197.62,197.54,2.69]
[1755912898734,36.45540941,197.69,197.54,2.69]
[1755912898735,8.40929665,197.64,197.54,2.69]
[1755912898933,11.09929665,197.66,197.54,2.69]
[1755912899132,11.09929665,197.66,197.55,4.86463004]
[1755912899435,11.09929665,197.66,197.56,2.69]
[1755912899833,2.69,197.66,197.58,2.69]
[1755912900133,8.40929665,197.68,197.58,2.69]
[1755912900435,173.21284677,197.71,197.54,2.24310239]
[1755912900436,170.52284677,197.71,197.64,2.69]
[1755912900733,2.69,197.75,197.64,2.69]
[1755912901333,7.7488,197.75,197.64,2.69]
[1755912901529,2.69,197.75,197.64,2.69]
[1755912902126,2.69,197.75,197.68,5.0603]
[1755912905129,2.81,197.8,197.67,25.3033]
[1755912905335,2.81,197.8,197.69,2.24310239]
[1755912905525,2.81,197.8,197.7,2.88]
[1755912905724,8.40929665,197.85,197.72,2.24310239]
[1755912905725,2.81,197.85,197.72,2.24310239]
[1755912906030,7.866,197.85,197.76,2.88]
[1755912908031,25.2783,197.87,197.72,2.88]
[1755912908233,4.55656007,197.85,197.72,2.88]
[1755912908538,2.81,197.83,197.67,2.88]
[1755912909129,5.0578,197.79,197.67,7.9404]
[1755912909334,2.81,197.78,197.67,7.9404]
[1755912909746,5.0581,197.77,197.67,7.9404]
[1755912909936,2.81,197.78,197.68,5.0601]
[1755912910739,7.8681,197.78,197.68,5.0601]
[1755912911044,2.81,197.78,197.67,2.88]
[1755912911631,2.81,197.68,197.57,2.88]
[1755912912130,2.81,197.68,197.59,2.88]
[1755912912634,2.81,197.68,197.52,129.72]
[1755912912635,2.81,197.66,197.47,2.88]
[1755912912834,2.81,197.66,197.49,2.88]
[1755912913533,2.81,197.66,197.48,25.3277]
[1755912913737,2.81,197.66,197.5,2.88]
[1755912914640,2.81,197.66,197.53,7.9442]
[1755912916639,2.81,197.62,197.53,2.88]
[1755912917144,2.81,197.62,197.5,5.0648]
[1755912917145,7.8721,197.62,197.5,2.88]
[1755912917344,2.81,197.62,197.52,5.0644]
[1755912917639,7.8719,197.62,197.53,4.82855068]
[1755912917839,7.8719,197.62,197.52,5.0644]
[1755912918143,7.8719,197.62,197.53,4.8288734]
[1755912918336,7.8719,197.62,197.52,5.0644]
[1755912918542,7.8719,197.62,197.53,4.83034753]
[1755912918738,7.8719,197.62,197.52,5.0644]
[1755912918935,7.8719,197.62,197.53,4.83032695]
[1755912919136,7.8719,197.62,197.52,5.0644]
[1755912919338,7.8719,197.62,197.53,4.83034621]
[1755912919635,7.8719,197.62,197.52,5.0644]
[1755912919829,7.8719,197.62,197.53,4.83239327]
[1755912920035,7.8719,197.62,197.54,4.83230449]
[1755912920234,7.8719,197.62,197.52,5.0644]
[1755912920443,7.8719,197.62,197.53,4.83311643]
[1755912920638,7.8719,197.62,197.54,4.83311643]
[1755912920841,7.8719,197.62,197.52,5.0644]
[1755912921038,7.8719,197.62,197.53,4.83442009]
[1755912921340,2.81,197.62,197.44,340.14]
[1755912921541,2.81,197.62,197.47,2.88]
[1755912921741,2.81,197.62,197.48,9.78941448]
[1755912921941,25.3149,197.58,197.44,340.14]
[1755912922137,2.81,197.57,197.45,9.79057816]
[1755912922441,2.81,197.57,197.46,4.80946607]
[1755912922636,2.81,197.57,197.43,2.88]
[1755912922837,2.81,197.57,197.44,9.79425191]
[1755912923140,2.81,197.57,197.45,9.79425191]
[1755912923342,2.81,197.57,197.46,4.81129807]
[1755912923539,5.0642,197.54,197.43,7.9467]
[1755912923740,2.81,197.57,197.44,12.67642867]
[1755912923940,2.81,197.57,197.45,9.79642867]
[1755912924137,2.81,197.57,197.46,4.81236869]
[1755912924338,2.81,197.57,197.44,2.88]
[1755912924538,2.81,197.57,197.45,9.79863956]
[1755912924739,2.81,197.57,197.46,4.8134539]
[1755912924940,5.0635,197.56,197.46,5.0658]
[1755912926545,29.87036007,197.59,197.43,25.334]
[1755912926546,2.81,197.51,197.43,2.88]
[1755912926746,2.81,197.51,197.44,4.81548358]
[1755912926937,5.064,197.54,197.45,4.8153615]
[1755912927243,5.064,197.54,197.44,5.0663]
[1755912927442,5.064,197.54,197.43,2.88]
[1755912927443,2.81,197.55,197.45,4.81469834]
[1755912927645,2.81,197.55,197.46,7.69574101]
[1755912927844,2.81,197.55,197.46,2.88]
[1755912928240,7.8739,197.55,197.46,7.9458]
[1755912929043,200.77560852,197.59,197.27,4.18012569]
[1755912929044,2.81,197.44,197.27,4.18012569]
[1755912929340,2.81,197.42,197.29,2.88]
[1755912929537,7.8771,197.42,197.3,14.87613913]
[1755912929746,7.8771,197.42,197.31,9.80613913]
[1755912929945,2.81,197.46,197.33,2.88]
[1755912930252,2.81,197.46,197.34,4.81716881]
[1755912930547,2.81,197.46,197.35,4.81716881]
[1755912930747,340.36,197.48,197.37,2.88]
[1755912930942,2.81,197.51,197.38,9.54213194]
[1755912931139,2.81,197.51,197.4,2.88]
[1755912931340,2.81,197.51,197.41,9.88436881]
[1755912931543,2.81,197.51,197.41,5.0672]
[1755912931938,2.81,197.51,197.43,5.0667]
[1755912932141,2.81,197.51,197.43,7.9467]
[1755912932343,131.24,197.57,197.36,25.3427]
[1755912932344,4.55656007,197.49,197.36,2.88]
[1755912932544,2.81,197.48,197.36,2.88]
[1755912933554,2.87,197.44,197.34,5.0689]
[1755912933950,2.87,197.44,197.35,5.0686]
[1755912934852,2.87,197.44,197.36,5.0683]
[1755912935362,25.3255,197.5,197.37,4.735606]
[1755912935363,2.87,197.5,197.37,4.735606]
[1755912935555,2.87,197.5,197.35,2.74]
[1755912935755,2.87,197.5,197.36,4.73461749]
[1755912935955,2.87,197.5,197.37,4.73461749]
[1755912936254,2.87,197.47,197.38,5.068]
[1755912936449,2.87,197.47,197.36,2.74]
[1755912936657,2.87,197.47,197.37,4.73260939]
[1755912936953,2.87,197.47,197.36,2.74]
[1755912937149,2.87,197.47,197.37,4.7325677]
[1755912937350,2.87,197.47,197.39,5.0676]
[1755912938451,2.87,197.47,197.4,5.0674]
[1755912940052,25.3182,197.56,197.36,25.342]
[1755912940053,2.87,197.58,197.45,2.74]
[1755912940660,5.0634,197.57,197.46,5.0658]
[1755912940860,5.0634,197.57,197.45,2.74]
[1755912941157,5.0634,197.57,197.47,5.0655]
[1755912941358,5.0634,197.57,197.45,2.74]
[1755912941559,2.87,197.58,197.46,4.72651249]
[1755912941762,2.87,197.58,197.47,2.74]
[1755912943061,4.55656007,197.68,197.48,4.72577658]
[1755912943062,5.0627,197.59,197.48,4.72577658]
[1755912943264,5.0627,197.59,197.48,2.74]
[1755912943458,2.87,197.61,197.5,5.0649]
[1755912943657,2.87,197.61,197.48,2.74]
[1755912943861,2.87,197.61,197.49,4.72512063]
[1755912944051,2.87,197.61,197.51,2.74]
[1755912944656,2.87,197.61,197.53,5.064]
[1755912945060,25.3032,197.68,197.51,2.74]
[1755912945061,2.87,197.65,197.55,5.0636]
[1755912945661,2.87,197.65,197.54,2.74]
[1755912946565,5.0616,197.64,197.54,2.74]
[1755912946863,2.87,197.65,197.54,2.74]
[1755912947161,7.9312,197.65,197.54,2.74]
[1755912947964,7.9312,197.65,197.54,7.8039]
[1755912948262,7.9312,197.65,197.48,25.3277]
[1755912948263,25.3073,197.64,197.41,340.56]
[1755912948464,25.3073,197.64,197.48,5.0653]
[1755912948465,2.87,197.63,197.48,5.0653]
[1755912949467,7.9324,197.6,197.49,5.065]
[1755912949661,7.9324,197.6,197.47,28.0688]
[1755912949662,2.87,197.6,197.48,2.74]
[1755912951273,2.87,197.6,197.51,5.0645]
[1755912951572,2.87,197.6,197.52,2.74]
[1755912951974,2.87,197.64,197.54,2.74]
[1755912954575,2.87,197.64,197.55,5.0635]
[1755912955472,2.87,197.64,197.54,2.74]
[1755912955473,2.87,197.68,197.56,7.51222058]
[1755912955769,2.87,197.68,197.58,2.74]
[1755912956371,2.87,197.68,197.59,4.77575571]
[1755912956572,2.87,197.68,197.58,2.74]
[1755912957676,5.0607,197.67,197.58,7.8027]
[1755912958574,5.0612,197.65,197.58,2.74]
[1755912958780,2.87,197.64,197.53,2.74]
[1755912958975,2.87,197.64,197.54,4.77581696]
[1755912959174,2.87,197.64,197.53,2.74]
[1755912959375,2.87,197.64,197.54,4.77579003]
[1755912959577,5.0621,197.62,197.53,7.8042]
[1755912960174,7.9315,197.64,197.56,5.0634]
[1755912960379,7.9315,197.64,197.55,2.74]
[1755912960579,2.87,197.64,197.55,2.74]
[1755912960777,2.87,197.64,197.56,4.77549581]
[1755912960970,2.87,197.64,197.55,2.74]
[1755912961371,7.9316,197.64,197.55,2.74]
[1755912962577,7.9316,197.64,197.55,7.8035]
[1755912963675,7.9316,197.64,197.56,5.0633]
[1755912963878,8.36543149,197.68,197.55,2.74]
[1755912964082,2.81,197.68,197.56,4.77435419]
[1755912964379,2.81,197.68,197.55,2.74]
[1755912964380,2.81,197.68,197.57,2.9]
[1755912965683,5.0608,197.67,197.59,5.0625]
[1755912965884,2.81,197.68,197.57,2.9]
[1755912966284,5.0616,197.64,197.57,2.9]
[1755912966680,2.81,197.65,197.57,2.9]
[1755912966876,2.81,197.65,197.53,2.9]
[1755912967077,135.77543149,197.64,197.48,2.9]
[1755912967286,33.67723149,197.61,197.48,2.9]
[1755912967477,0.03296925,197.58,197.54,0.0332835]
[1755912967687,2.81,197.55,197.43,2.9]
[1755912968087,2.81,197.55,197.39,133.16]
[1755912968088,2.81,197.51,197.39,133.16]
[1755912968584,2.81,197.51,197.39,130.26]
[1755912968781,5.55543149,197.56,197.41,2.9]
[1755912968980,0.03424569,197.47,197.43,28.2341]
[1755912969180,0.03424569,197.47,197.46,7.966]
[1755912969382,2.81,197.57,197.47,0.03636222]
[1755912970591,0.03561727,197.54,197.5,5.0648]
[1755912970891,0.03561727,197.54,197.52,2.9]
[1755912971889,0.03561727,197.54,197.53,2.9]
[1755912972490,0.03561727,197.54,197.51,7.99853349]
[1755912973985,0.03561727,197.54,197.51,2.93403349]
[1755912976990,0.03561727,197.54,197.52,2.9]
[1755912977989,0.03561727,197.54,197.53,2.9]
[1755912978391,0.03561727,197.54,197.51,0.03403349]
[1755912978590,0.03561727,197.54,197.51,2.93403349]
[1755912979799,0.03561727,197.54,197.51,0.03403349]
[1755912980498,2.81,197.53,197.51,0.03403349]
[1755912980697,5.59104876,197.54,197.51,0.03403349]
[1755912980902,2.84561727,197.54,197.51,0.03403349]
[1755912981291,8.40104876,197.54,197.51,0.03403349]
[1755912981492,5.59104876,197.54,197.51,0.03403349]
[1755912981692,2.81,197.53,197.51,0.03403349]
[1755912982501,8.36543149,197.53,197.51,0.03403349]
[1755912982699,5.55543149,197.53,197.51,0.03403349]
[1755912982899,2.81,197.52,197.51,0.03403349]
[1755912983704,2.81,197.52,197.45,5.0663]
[1755912983705,2.81,197.48,197.4,2.9]
[1755912983902,2.81,197.45,197.4,2.9]
[1755912984102,5.57359172,197.47,197.41,7.72995998]
[1755912984404,5.57359172,197.47,197.41,2.9]
[1755912985205,2.84765442,197.46,197.41,2.9]
[1755912985794,0.03765442,197.46,197.36,25.3422]
[1755912986102,0.03765442,197.46,197.38,2.9]
[1755912986304,0.03765442,197.46,197.37,11.43768603]
[1755912986305,0.03765442,197.46,197.4,2.9]
[1755912986500,0.03765442,197.46,197.41,4.8283617]
[1755912986705,0.03765442,197.46,197.43,2.9]
[1755912986906,0.03765442,197.46,197.37,2.9]
[1755912987103,0.03765442,197.46,197.38,9.56910873]
[1755912987308,0.03765442,197.46,197.4,2.9]
[1755912987605,0.03765442,197.46,197.43,2.9]
[1755912987809,0.03765442,197.46,197.44,4.82694426]
[1755912988003,0.03765442,197.46,197.43,2.9]
[1755912988204,0.03765442,197.46,197.44,4.82545395]
[1755912988510,0.03765442,197.46,197.38,2.9]
[1755912988802,0.03765442,197.46,197.39,9.56415457]
[1755912989107,0.03765442,197.46,197.4,14.63135457]
[1755912989302,0.03765442,197.46,197.41,4.82445402]
[1755912989506,0.03765442,197.46,197.43,2.9]
[1755912989701,0.03765442,197.46,197.44,4.82445402]
[1755912989898,0.03765442,197.46,197.42,2.9]
[1755912990102,0.03765442,197.46,197.44,2.9]
[1755912992003,0.03765442,197.46,197.42,5.0667]
[1755912992204,0.03765442,197.46,197.44,2.9]
[1755912993509,0.03765442,197.46,197.4,5.0673]
[1755912993709,0.03765442,197.46,197.41,4.81973274]
[1755912993913,0.03765442,197.46,197.42,4.81973274]
[1755912994107,0.03765442,197.46,197.41,2.87]
[1755912994108,2.87,197.45,197.41,2.87]
[1755912996707,0.03765442,197.46,197.39,2.87]
[1755912996914,0.03765442,197.46,197.4,4.81602418]
[1755912997114,0.03765442,197.46,197.41,4.81602418]
[1755912997316,0.03765442,197.46,197.39,2.87]
[1755912997617,0.03765442,197.46,197.4,4.8155277]
[1755912997814,0.03765442,197.46,197.39,2.87]
[1755912998114,2.87,197.45,197.33,2.87]
[1755912998310,2.87,197.45,197.35,2.87]
[1755912998606,2.87,197.45,197.36,4.81521038]
[1755912998803,0.03346818,197.42,197.37,4.81521038]
[1755912999008,0.03346818,197.42,197.38,2.87]
[1755912999308,2.90346818,197.42,197.31,2.87]
[1755912999511,2.90346818,197.42,197.33,2.87]
[1755912999812,2.87,197.42,197.34,4.81479306]
[1755913000013,2.87,197.42,197.33,2.87]
[1755913000314,0.03757193,197.39,197.36,2.87]
[1755913001620,0.03757193,197.39,197.32,5.0693]
[1755913001913,0.03757193,197.39,197.33,4.81292863]
[1755913002117,0.03757193,197.39,197.36,2.87]
[1755913002322,0.03757193,197.39,197.3,340.34]
[1755913002516,0.03757193,197.39,197.32,2.87]
[1755913002719,0.03757193,197.39,197.33,9.46899374]
[1755913002921,0.03757193,197.39,197.34,7.68289605]
[1755913003122,0.03757193,197.39,197.35,7.68289605]
[1755913003322,0.03757193,197.39,197.36,9.88109605]
[1755913003523,0.03757193,197.39,197.38,2.87]
[1755913004621,0.03757193,197.39,197.34,5.0688]
[1755913004822,0.03757193,197.39,197.35,4.8139287]
[1755913005021,0.03757193,197.39,197.38,2.87]
[1755913006223,0.03757193,197.39,197.33,5.0691]
[1755913006416,0.03757193,197.39,197.34,4.81320056]
[1755913006619,0.03757193,197.39,197.36,2.87]
[1755913006816,0.03757193,197.39,197.32,2.87]
[1755913007026,0.03757193,197.39,197.33,4.81313795]
[1755913007228,0.03757193,197.39,197.35,2.87]
[1755913008728,2.90757193,197.39,197.35,2.87]
[1755913009323,2.87,197.38,197.3,2.87]
[1755913009633,0.03757193,197.39,197.32,2.87]
[1755913009827,0.03757193,197.39,197.33,4.81424877]
[1755913010027,2.87,197.43,197.35,2.87]
[1755913010338,0.03566114,197.38,197.35,2.87]
[1755913010934,0.03566114,197.38,197.36,2.87]
[1755913011128,0.03566114,197.38,197.37,2.87]
[1755913011334,0.03566114,197.38,197.37,7.68828496]
[1755913012033,0.03566114,197.38,197.34,2.87]
[1755913012330,0.03566114,197.38,197.36,2.87]
[1755913012529,0.03566114,197.38,197.37,4.85222362]
[1755913012736,0.03566114,197.38,197.37,7.72222362]
[1755913013531,0.03566114,197.38,197.37,2.87]
[1755913015035,0.03566114,197.38,197.34,2.87]
[1755913015236,0.03566114,197.38,197.35,4.85123008]
[1755913015433,0.03566114,197.38,197.35,2.87]
[1755913015735,0.03566114,197.38,197.28,2.87]
[1755913015938,0.03566114,197.38,197.27,25.3536]
[1755913015939,0.03566114,197.38,197.29,9.48008101]
[1755913016131,0.03566114,197.38,197.3,12.35008101]
[1755913016438,0.03566114,197.38,197.31,9.9206865]
[1755913016637,0.03566114,197.38,197.32,4.8511865]
[1755913016849,0.03566114,197.38,197.3,2.87]
[1755913016850,0.03566114,197.38,197.33,4.8511865]
[1755913017140,2.87,197.36,197.34,4.8511865]
[1755913017340,7.9385,197.36,197.3,2.87]
[1755913017541,7.9385,197.36,197.32,2.87]
[1755913017740,5.0685,197.36,197.33,4.85218386]
[1755913017943,5.0685,197.36,197.34,4.85218386]
[1755913018240,5.10270077,197.36,197.32,2.87]
[1755913018538,5.10270077,197.36,197.33,4.85274478]
[1755913018739,5.10270077,197.36,197.29,7.9401]
[1755913018935,5.0685,197.36,197.3,4.85288655]
[1755913019245,0.03870023,197.34,197.32,2.87]
[1755913019444,0.03870023,197.34,197.33,4.85288655]
[1755913020350,2.87,197.43,197.34,2.87]
[1755913020649,2.87,197.43,197.35,4.85288655]
[1755913020844,7.9372,197.41,197.36,7.72288655]
[1755913021045,7.9372,197.41,197.37,2.87]
[1755913021546,2.87,197.43,197.28,2.87]
[1755913021736,2.87,197.43,197.3,2.87]
[1755913021935,2.87,197.43,197.32,2.87]
[1755913022139,2.87,197.43,197.34,2.87]
[1755913022342,2.87,197.43,197.35,4.85560184]
[1755913022641,2.87,197.43,197.36,4.85560184]
[1755913022949,2.87,197.43,197.37,4.85621786]
[1755913023247,2.87,197.43,197.34,2.87]
[1755913023748,5.0672,197.41,197.35,4.8581934]
[1755913023947,7.9372,197.41,197.36,7.5981934]
[1755913024147,7.9372,197.41,197.37,4.8581934]
[1755913024339,7.9372,197.41,197.36,2.74]
[1755913024642,7.9372,197.41,197.37,4.86084187]
[1755913024846,5.0672,197.41,197.37,2.74]
[1755913025845,7.9372,197.41,197.37,2.74]
[1755913026049,2.87,197.4,197.32,2.74]
[1755913026357,2.87,197.4,197.33,4.865166]
[1755913026540,2.87,197.4,197.34,4.86502286]
[1755913026744,2.82699772,197.41,197.35,4.86502286]
[1755913026940,2.82699772,197.41,197.32,2.74]
[1755913026941,2.87,197.39,197.24,129.32]
[1755913027153,28.16269772,197.41,197.26,2.74]
[1755913027154,2.87,197.34,197.26,2.74]
[1755913027446,2.87,197.34,197.27,4.86502286]
[1755913027644,2.87,197.34,197.28,4.86502286]
[1755913027845,5.69699772,197.38,197.3,2.74]
[1755913028049,2.87,197.37,197.31,4.86502286]
[1755913028244,2.87,197.37,197.26,2.74]
[1755913028449,2.87,197.37,197.27,4.86749562]
[1755913028653,2.87,197.37,197.28,4.86749562]
[1755913028849,2.87,197.37,197.29,4.86749562]
[1755913029054,2.87,197.37,197.3,4.86749562]
[1755913029346,5.0684,197.36,197.31,4.86749562]
[1755913029549,5.0684,197.36,197.32,7.60749562]
[1755913029751,5.0684,197.36,197.32,2.74]
[1755913030347,5.0689,197.34,197.28,2.74]
[1755913030555,5.0689,197.34,197.3,2.74]
[1755913030754,5.0689,197.34,197.31,4.86566835]
[1755913030947,5.0689,197.34,197.3,2.74]
[1755913031143,5.0689,197.34,197.31,4.86571128]
[1755913031348,5.0689,197.34,197.3,2.74]
[1755913031545,5.0689,197.34,197.31,4.86574579]
[1755913031750,2.87,197.33,197.26,5.0707]
[1755913032055,2.87,197.33,197.27,4.86595904]
[1755913032256,2.87,197.33,197.28,7.60595904]
[1755913032549,2.87,197.33,197.29,4.86595904]
[1755913032749,2.87,197.33,197.3,4.86589761]
[1755913032950,7.938,197.4,197.31,7.60589761]
[1755913033143,7.938,197.4,197.32,4.86531537]
[1755913033347,5.0682,197.37,197.33,4.86588248]
[1755913033547,5.0682,197.37,197.31,2.74]
[1755913033755,5.0682,197.37,197.32,4.86595356]
[1755913033957,5.0682,197.37,197.33,7.60595356]
[1755913034262,349.06038759,197.43,197.34,4.86595356]
[1755913034450,11.23038759,197.44,197.35,4.86595356]
[1755913034651,5.067,197.42,197.36,4.86595356]
[1755913034951,5.067,197.42,197.33,2.74]
[1755913035149,5.067,197.42,197.34,4.86576984]
[1755913035351,2.87,197.44,197.35,4.86576984]
[1755913035550,2.87,197.44,197.36,4.86576984]
[1755913035750,2.87,197.44,197.33,2.74]
[1755913035956,2.87,197.44,197.34,4.86722068]
[1755913036159,2.87,197.44,197.35,4.86722068]
[1755913036456,2.87,197.44,197.33,2.74]
[1755913036457,11.23038759,197.44,197.33,2.74]
[1755913036647,5.0675,197.4,197.34,4.86880904]
[1755913036852,5.0675,197.4,197.33,2.74]
[1755913036853,2.87,197.39,197.35,4.86880904]
[1755913037051,2.87,197.39,197.33,2.74]
[1755913037255,2.87,197.37,197.34,4.87025922]
[1755913037455,2.87,197.37,197.33,2.74]
[1755913037650,7.9383,197.37,197.34,4.87055221]
[1755913037848,7.9383,197.37,197.33,2.74]
[1755913038054,7.9383,197.37,197.34,4.87055221]
[1755913038254,7.9383,197.37,197.33,2.74]
[1755913038558,7.9383,197.37,197.29,2.74]
[1755913038757,7.9383,197.37,197.3,4.87252647]
[1755913038956,7.9383,197.37,197.29,2.74]
[1755913038957,7.9383,197.37,197.31,4.87252647]
[1755913039159,2.87,197.35,197.32,4.87252647]
[1755913039354,2.87,197.38,197.25,2.74]
[1755913039552,2.87,197.38,197.26,9.49317827]
[1755913039748,2.87,197.38,197.27,9.49317827]
[1755913039953,2.87,197.38,197.28,4.87399571]
[1755913040153,2.87,197.38,197.29,4.87399571]
[1755913040356,2.87,197.38,197.3,4.87399571]
[1755913040653,5.0692,197.33,197.25,2.74]
[1755913040853,5.0692,197.33,197.26,9.55447879]
[1755913041056,5.0692,197.33,197.27,9.55447879]
[1755913041249,5.0692,197.33,197.28,9.55479809]
[1755913041250,2.87,197.32,197.28,9.55479809]
[1755913041455,2.87,197.32,197.29,4.87441287]
[1755913041762,2.87,197.39,197.3,4.87474349]
[1755913041956,2.87,197.39,197.31,7.61474349]
[1755913042156,2.87,197.39,197.32,4.87474349]
[1755913042461,2.87,197.39,197.33,4.87474349]
[1755913042662,2.87,197.39,197.31,2.74]
[1755913042862,2.87,197.39,197.32,4.89489803]
[1755913043158,2.87,197.39,197.33,4.89489803]
[1755913043362,2.87,197.39,197.31,2.74]
[1755913043562,2.87,197.38,197.32,4.89615742]
[1755913043857,2.87,197.37,197.26,7.8109]
[1755913044063,2.87,197.37,197.27,9.5794255]
[1755913044260,2.87,197.37,197.28,4.89634372]
[1755913044458,2.87,197.37,197.29,4.89634372]
[1755913044659,5.069,197.34,197.3,4.89634372]
[1755913044860,5.069,197.34,197.26,7.8109]
[1755913045062,5.069,197.34,197.27,4.8967756]
[1755913045264,5.069,197.34,197.28,4.8967756]
[1755913045458,5.069,197.34,197.29,7.6367756]
[1755913045758,5.069,197.34,197.3,4.8967756]
[1755913045953,5.0694,197.33,197.29,2.74]
[1755913046268,7.9394,197.33,197.3,4.89610709]
[1755913046459,7.9394,197.33,197.26,2.74]
[1755913046661,5.0695,197.32,197.27,4.89543456]
[1755913046862,5.0695,197.32,197.28,4.89543456]
[1755913047059,5.0695,197.32,197.29,4.89543456]
[1755913047258,5.0695,197.32,197.3,4.89543456]
[1755913047459,5.0695,197.32,197.28,2.74]
[1755913047661,7.9395,197.32,197.29,4.89530435]
[1755913047861,7.9395,197.32,197.3,4.89530435]
[1755913048062,5.0695,197.32,197.24,136.7114]
[1755913048259,5.0695,197.32,197.25,4.89530435]
[1755913048466,5.0695,197.32,197.26,4.89530435]
[1755913048663,2.87,197.31,197.27,4.89530435]